[Event "American Cup Women Champions 2024"]
[Site "Saint Louis"]
[Date "2024.03.14"]
[Round "2.1"]
[White "Tokhirjonova, Gulrukhbegim"]
[Black "Lee, Alice"]
[Result "0-1"]
[ECO "A14"]
[WhiteElo "2365"]
[BlackElo "2356"]
[Annotator "TA"]
[PlyCount "106"]
[EventDate "2024.03.11"]
[EventType "k.o."]
[EventCountry "USA"]
[SourceTitle "playchess.com"]
[Source "ChessBase"]
[SourceQuality "1"]
[TimeControl "900+10"]

{[%evp 70,106,-109,-157,-143,-491,-498,-508,-488,-403,-481,-480,-466,-439,-406,-413,-215,-503,-490,-1033,-149,-157,-155,-157,-154,-197,-190,-412,-402,-381,0,-424,-410,-4929,-4921,-4921,-4809,-29994,-29995]} 1. c4 {[%emt 0:00:00]} e6 {[%emt 0:00:00]} 2. g3 {[%emt 0:00:00]} d5 {[%emt 0:00:00]} 3. Bg2 {[%emt 0:00:00]} Nf6 {[%emt 0:00:00]} 4. Nf3 {[%emt 0:00:00]} Be7 {[%emt 0:00:00]} 5. O-O {[%emt 0:00:00]} O-O {[%emt 0:00:00]} 6. b3 {[%emt 0:00:00]} d4 {[%emt 0:00:00]} 7. Bb2 {[%emt 0:00:00]} c5 {[%emt 0:00:00]} 8. e3 {[%emt 0:00:00]} Nc6 {[%emt 0:00:00]} 9. exd4 {[%emt 0:00:00]} cxd4 {[%emt 0:00:00]} 10. Re1 {[%emt 0:00:00]} a5 {[%emt 0:00:00] A14: Reti-Eröffnung.} 11. Na3 {[%emt 0:00:00]} Re8 {[%emt 0:00:00]} 12. d3 {[%emt 0:00:00]} Bb4 {[%emt 0:00:00]} 13. Re2 {[%emt 0:00:00]} e5 {[%emt 0:00:00]} 14. Nb5 {[%emt 0:00:00]} Bg4 {[%emt 0:00:00]} 15. h3 $146 {[%emt 0:00:00]} ({Predecessor:} 15. a3 Bf8 16. Qd2 Nd7 17. h3 Bf5 18. Rae1 Be7 19. Bc1 Bg6 20. Nh2 Nc5 21. Be4 Bxe4 22. Rxe4 Nxb3 {0-1 Feliz Dotel,D (2042)-Guzman,C (2286) DOM-ch Santo Domingo 2018 (1)}) 15... Bh5 {[%emt 0:00:00]} 16. a3 {[%emt 0:00:00]} Bc5 {[%emt 0:00:00]} 17. g4 {[%emt 0:00:00]} Bg6 {[%emt 0:00:00]} 18. Nh4 {[%emt 0:00:00]} Nd7 {[%emt 0:00:00]} 19. Nxg6 {[%emt 0:00:00]} hxg6 {[%emt 0:00:00]} 20. Qd2 {[%emt 0:00:00]} Nf8 {[%emt 0:00:00]} 21. f4 {[%emt 0:00:00]} Qd7 {[%emt 0:00:00]} 22. f5 {[%emt 0:00:00]} gxf5 {[%emt 0:00:00]} 23. gxf5 {[%emt 0:00:00]} Nh7 {[%emt 0:00:00]} 24. Rf1 {[%emt 0:00:00]} Nf6 {[%emt 0:00:00]} 25. Bf3 {[%emt 0:00:00]} e4 {[%emt 0:00:00]} 26. Bxe4 {[%emt 0:00:00]} Nxe4 {[%emt 0:00:00]} 27. Rxe4 {[%emt 0:00:00]} Rxe4 {[%emt 0:00:00]} 28. dxe4 {[%emt 0:00:00]} Re8 {[%emt 0:00:00]} 29. Qg2 {[%emt 0:00:00]} f6 {[%emt 0:00:00]} 30. Kh1 {[%emt 0:00:00]} Qe7 {[%emt 0:00:00]} 31. Rf4 {[%emt 0:00:00]} Rd8 {[%emt 0:00:00]} 32. Bc1 {[%emt 0:00:00]} Ne5 {[%emt 0:01:01]} 33. Rf1 {[%emt 0:00:00]} Nd3 {[%emt 0:06:01]} 34. Bd2 {[%emt 0:00:00]} b6 {[%emt 0:01:23]} 35. Qf3 {[%emt 0:03:47]} Ne5 {[%emt 0:00:00]} 36. Qg3 {[%emt 0:00:11]} (36. Qh5 $142) 36... a4 $1 $17 {[%emt 0:02:57]} (36... Bxa3 37. Bf4 Bc5 38. Bxe5 Qxe5 39. Qxe5 fxe5 40. Nc7) 37. Bh6 $2 {[%emt 0:11:56][%mdl 8192]} (37. b4 $17 Nxc4 38. Qd3 Nxd2 39. Qxd2 Qxe4+ 40. Qg2) 37... axb3 $19 {[%emt 0:00:46]} (37... Bxa3 38. Nxa3 (38. bxa4 Bc5 $17) 38... d3 39. Nb1 $18) 38. Rg1 {[%emt 0:00:00]} g5 {[%emt 0:07:55]} (38... Bxa3 $2 39. Bxg7 $18 (39. Qxb3 g5 $11) (39. Qxb3 g5 $15)) 39. fxg6 {[%emt 0:00:00]} d3 {[%emt 0:00:00]} (39... Bxa3 40. c5 (40. Qxb3 Bc5 $15) 40... d3 41. Nxa3 $16) (39... Nxc4 40. Qd3 Na5 (40... Nxa3 41. Qxb3+) (40... Qe6 $2 41. Nc7 $18) 41. Bf4 $17) 40. Rd1 {[%emt 0:01:18]} Nxc4 {[%emt 0:00:02]} (40... Bxa3 $2 41. Nxa3 Qxa3 42. Qf2 $19) 41. Nc3 {[%emt 0:00:47]} b2 {[%emt 0:00:32]} (41... Nxa3 42. Rxd3 b2 43. Rxd8+ Qxd8 44. Qg4 $11) (41... Bxa3 42. Qf4 b2 43. Qf5 $17 (43. Nd5 $2 Rxd5 44. exd5 Nd6 $19)) 42. Qf3 {[%emt 0:01:13]} Ne5 {[%emt 0:00:53]} (42... Bxa3 43. Qf5 Qe5 44. Rxd3 $19) (42... Qe5 $142 43. Qg4 d2 (43... Qxc3 44. Qe6+ Kh8 45. Qf7)) 43. Qg2 $2 {[%emt 0:00:14]} (43. Qf5 {ist eine bessere Verteidigung.} Qd7 (43... Bxa3 44. Nd5 $16) 44. Qh5) 43... Qe6 $19 {[%emt 0:00:10]} 44. Nd5 {[%emt 0:00:02] [#]} (44. Nb1 $142) 44... Rxd5 $2 {[%emt 0:00:16]} (44... d2 $1 $19 {[%mdl 512] Weiss muss nun ...Nd3 beachten.} 45. Rf1 (45. Bxd2 Rxd5) 45... Rxd5 (45... Bxa3 $2 46. Bxd2 Kg7 47. Nf4 $19) (45... Nc4 $2 46. Qf3 $19) 46. exd5 Qf5 47. Bxd2 b1=Q (47... b1=R $2 48. Be1 $19) 48. Rxb1 Qxb1+ 49. Kh2 Bg1+ (49... Qxg6 $2 50. Qxg6+ Nxg6 51. a4 $19) (49... Nxg6 $2 50. Bb4 $19) 50. Qxg1 Nf3+ (50... Qxg6 $2 51. Qxg6+ Nxg6 52. a4 $18) 51. Kg2 Nxg1 (51... Qxg1+ $2 52. Kxf3 Qf1+ 53. Ke4 $19)) 45. exd5 $17 {[%emt 0:00:00]} Qf5 {[%emt 0:00:02]} 46. d6 {[%emt 0:01:18] [#]} Nf3 $1 {[%emt 0:00:15]} 47. d7 {[%emt 0:00:45]} (47. Qxb2 $2 Qxh3+) 47... Be7 {[%emt 0:00:00]} 48. Qg4 $2 {[%emt 0:01:04]} (48. Qxb2 $2 Qxh3+) (48. Qg3 Bd8 (48... Ne5 49. Rb1 $11) 49. Kg2) 48... Qd5 $19 {[%emt 0:00:04]} 49. Qg2 {[%emt 0:00:03]} Qf5 $2 {[%emt 0:00:00]} ({Vorzuziehen ist} 49... d2 $19 50. Qg3 (50. Bxd2 $2 Qd3 $19) 50... Bd8 (50... Bxa3 51. Qb8+)) 50. g7 $2 {[%emt 0:00:09][%mdl 8192]} (50. Qxb2 $2 Qxh3+) (50. Qg4 $11 Qd5 51. Qg2) 50... d2 {[%emt 0:00:32]} (50... Bxa3 51. d8=Q+ (51. d8=B $2 Nh4 $19) (51. d8=B $2 Nh4 $19)) 51. Qg3 {[%emt 0:00:16]} (51. Qg4 $142 Qd5 (51... b1=B 52. Qc4+ Kh7 53. g8=Q+ Kxh6 54. Qh8+ Qh7 55. Qf4+ Ng5 56. Qh4+ Kg6 57. Q4xh7+ Nxh7 58. Qe8+ Kg5 59. Qxe7) 52. Qg3) 51... Bd8 $19 {[%emt 0:00:06]} (51... b1=B 52. Qb8+ (52. Bxd2 $2 Be4 $19) (52. Bxd2 $2 Be4 $19)) 52. Qg4 {[%emt 0:00:13] [#]} Qd5 $1 {[%emt 0:00:00]} ({Schlechter ist} 52... b1=B 53. Qc4+ (53. Bxd2 $2 {ist das falsche Schlagen.} Qd5 $19) 53... Kh7 54. g8=Q+ (54. g8=B+ $2 {zu gefräßig.} Kxh6 55. Qg4 Qe5 $19) 54... Kxh6 55. Qf8+ (55. Qxd8 $2 Qxh3#) (55. Qh8+ Qh7 56. Qxd8 Qg7 57. Rxb1 Kh7 58. Qd3+ Kh6 59. Qxf3 d1=Q+ 60. Rxd1 Qg5) 55... Kg6 56. Rg1+ (56. Qxd8 $2 Qxh3#) (56. Qcg8+ Kh5 57. Qh8+ Qh7 58. Qxd8 Qxh8 59. Qxh8+ Kg5 60. d8=Q Kf4 61. Qh6+ Kg3) 56... Nxg1 57. Qfg8+ Kh5 58. Qh8+ (58. Kxg1 $2 d1=Q+ 59. Kh2 Qf2+ 60. Qg2 Qdg1#) 58... Qh7 59. Qg4+ (59. Qxd8 Be4+ 60. Kh2 Nf3+ 61. Kg3 Qg7+ 62. Kf4 Qg5+ 63. Kxe4 Qe5+ 64. Kxf3 d1=Q+ 65. Kg2 Qd2+ 66. Kg1 Qeh2+ 67. Kf1 Qh1#) 59... Kh6 60. Qh4+ Kg6 61. Q8xh7#) 53. Qg2 {[%emt 0:00:05]} b1=Q {[%emt 0:00:00]} 0-1

[Event "American Cup Women Champions 2024"]
[Site "Saint Louis"]
[Date "2024.03.15"]
[Round "2.2"]
[White "Lee, Alice"]
[Black "Tokhirjonova, Gulrukhbegim"]
[Result "1-0"]
[ECO "E04"]
[WhiteElo "2356"]
[BlackElo "2365"]
[Annotator "TA"]
[PlyCount "99"]
[EventDate "2024.03.11"]
[EventType "k.o."]
[EventCountry "USA"]
[SourceTitle "playchess.com"]
[Source "ChessBase"]
[SourceQuality "1"]
[TimeControl "900+10"]

{[%evp 11,99,24,28,9,35,20,14,0,1,0,0,-9,48,-13,-11,-12,-23,-12,-8,-11,0,0,4,2,10,11,111,14,140,137,139,126,258,228,286,296,326,319,325,327,377,371,387,386,570,570,828,375,382,383,375,368,387,326,332,335,382,382,382,382,382,382,397,375,391,362,414,420,404,420,432,426,583,556,556,556,693,672,1000,922,29987,29988,29988,29989,29989,29989,29993,29993,29996,29997]} 1. d4 {[%emt 0:00:02]} d5 {[%emt 0:00:02]} 2. c4 {[%emt 0:00:02]} e6 {[%emt 0:00:01]} 3. Nf3 {[%emt 0:00:05]} Nf6 {[%emt 0:00:02]} 4. g3 {[%emt 0:00:28]} dxc4 {[%emt 0:00:02]} 5. Bg2 {[%emt 0:00:02]} Bb4+ {[%emt 0:00:03]} 6. Bd2 {[%emt 0:00:01]} a5 {[%emt 0:00:07]} 7. Qc2 {[%emt 0:00:02]} c5 {[%emt 0:00:14]} 8. Qxc4 {[%emt 0:00:29]} b6 {[%emt 0:00:22]} 9. a3 {[%emt 0:00:44] The position is equal.} Ba6 {[%emt 0:00:17]} 10. Qc2 {[%emt 0:00:04]} Bxd2+ {[%emt 0:00:36]} 11. Nbxd2 {[%emt 0:00:15]} Nbd7 {[%emt 0:00:53]} (11... cxd4 $11 12. Nxd4 Ra7) 12. Rd1 {[%emt 0:05:09]} ({White should play} 12. dxc5 $1 $14 bxc5 13. Nc4) 12... Rc8 $11 {[%emt 0:00:20] Black wants to play ...cxd4.} 13. Ne4 {[%emt 0:00:25]} Nxe4 {[%emt 0:01:20]} 14. Qxe4 {[%emt 0:00:02]} O-O {[%emt 0:00:09]} 15. dxc5 {[%emt 0:02:56]} Nxc5 {[%emt 0:00:36]} (15... Rxc5 {with more complications.} 16. b4 axb4 17. axb4 Rc4) 16. Qe3 $1 {[%emt 0:00:27]} Qe8 {[%emt 0:02:04]} 17. O-O {[%emt 0:00:41]} Qa4 {[%emt 0:01:11]} 18. Nd4 {[%emt 0:01:15][%cal Ob2b4]} Rfd8 {[%emt 0:00:27] [#]} (18... Bb7 $1 $11) 19. b4 {[%emt 0:00:21]} (19. Bc6 $1 $16 {[%cal Rc6a4][%mdl 512]} Qc4 (19... Rxc6 $2 20. b3 $18) 20. Bf3 (20. b3 Nxb3 21. Qxb3 Rxd4 $11)) 19... e5 {[%emt 0:01:58]} (19... axb4 $11 {keeps the balance.} 20. axb4 Bb7) 20. Qxe5 $16 {[%emt 0:00:34]} Re8 {[%emt 0:00:23]} 21. Qd6 {[%emt 0:00:18]} axb4 {[%emt 0:01:26] Loses the game.} (21... Ne6 $16) 22. axb4 $18 {[%emt 0:01:55]} ({Don't play} 22. Qxb6 $6 Ne6 $18) ({Not} 22. Bc6 Rxc6 23. Qxc6 (23. Nxc6 bxa3 24. Nd4 g6 $14) 23... Qxc6 24. Nxc6 b3 $16 (24... Bxe2 $2 25. Rfe1 $18) (24... bxa3 25. Ra1 $16)) 22... Qxb4 {[%emt 0:00:47]} 23. Nc6 {[%emt 0:00:22]} Qb2 {[%emt 0:02:34]} 24. Ne7+ {[%emt 0:00:06]} Rxe7 {[%emt 0:00:05]} 25. Qxe7 {[%emt 0:00:02] Threatening mate with Rd8+.} g6 {[%emt 0:00:05]} 26. Bf3 {[%emt 0:00:55]} Bc4 {[%emt 0:01:51]} 27. Rb1 {[%emt 0:00:30]} Qd4 {[%emt 0:00:10]} (27... Qg7 {might work better.} 28. Rxb6 Qc3) 28. Rfd1 {[%emt 0:00:09]} Qc3 {[%emt 0:00:16]} 29. Rd8+ {[%emt 0:00:04]} (29. Rbc1 $142 Qb3 30. Rd8+ Rxd8 31. Qxd8+ Kg7 32. Qd4+ Kh6 33. Qxc4) 29... Rxd8 {[%emt 0:00:03]} 30. Qxd8+ {[%emt 0:00:02]} Kg7 {[%emt 0:00:02]} 31. Qxb6 {[%emt 0:00:06]} Nb3 {[%emt 0:00:43]} 32. Qe3 {[%emt 0:00:13] Repels Nd2} Qxe3 {[%emt 0:00:41]} 33. fxe3 {[%emt 0:00:03][%mdl 4096] Endgame. KRB-KBN} Be6 {[%emt 0:00:04]} 34. Rd1 {[%emt 0:00:11]} Nc5 {[%emt 0:00:12]} 35. Bd5 {[%emt 0:00:06]} Bg4 {[%emt 0:00:04]} 36. Rc1 {[%emt 0:00:11]} Nd7 {[%emt 0:00:09]} 37. Kf2 {[%emt 0:00:10]} Ne5 {[%emt 0:00:02]} 38. Ke1 {[%emt 0:00:48]} h5 {[%emt 0:00:05]} 39. Rc7 {[%emt 0:00:11]} Kf6 {[%emt 0:00:06]} 40. Kd2 {[%emt 0:00:14]} g5 {[%emt 0:00:06][%cal Bg6g5,Bg5h4][%mdl 32]} 41. e4 {[%emt 0:00:25][%cal Be3e4,Be4e5][%mdl 32]} h4 {[%emt 0:00:26]} 42. gxh4 {[%emt 0:00:25]} gxh4 {[%emt 0:00:01]} 43. Ke3 {[%emt 0:00:05]} Bh3 {[%emt 0:00:26]} 44. Ra7 {[%emt 0:00:18]} Ng4+ {[%emt 0:00:42]} 45. Kf4 {[%emt 0:00:09]} Nxh2 {[%emt 0:00:02]} 46. e5+ {[%emt 0:00:15] White mates.} Kg6 {[%emt 0:00:03]} 47. Bxf7+ {[%emt 0:00:02]} Kh6 {[%emt 0:00:25]} 48. e6 {[%emt 0:00:01]} Kg7 {[%emt 0:00:07]} 49. Kg5 {[%emt 0:00:08]} Bf1 {[%emt 0:00:11]} 50. Bh5+ {[%emt 0:00:06] Weighted Error Value: White=0.24 (precise) /Black=0.50.  Mistake:       	White=3     	Black=5      Inaccurate:     	---       	Black=4      OK:         	White=15    	Black=6      Best:        	White=3     	Black=4      Strong:       	White=1     	---} 1-0

[Event "American Cup Women Champions 2024"]
[Site "Saint Louis"]
[Date "2024.03.15"]
[Round "2.2"]
[White "Paikidze, Nazi"]
[Black "Krush, Irina"]
[Result "0-1"]
[ECO "A46"]
[WhiteElo "2319"]
[BlackElo "2421"]
[Annotator "TA"]
[PlyCount "82"]
[EventDate "2024.03.11"]
[EventType "k.o."]
[EventCountry "USA"]
[SourceTitle "playchess.com"]
[Source "ChessBase"]
[SourceQuality "1"]
[TimeControl "900+10"]

{[%evp 9,82,7,13,-27,-25,-29,-17,-27,-37,-17,-21,-25,-8,-19,-11,-38,-24,-18,-18,-32,-24,-41,-57,-91,-58,-142,-81,-89,-80,-130,-118,-132,-79,-98,-89,-172,-163,-219,-204,-291,-268,-311,-304,-455,-464,-459,-469,-459,-453,-448,-448,-422,-418,-485,-489,-486,-481,-550,-542,-618,-604,-615,-635,-634,-612,-690,-690,-932,-753,-981,-912,-1274,-1254,-1476,-1345]} 1. d4 {[%emt 0:00:03]} Nf6 {[%emt 0:00:02]} 2. Nf3 {[%emt 0:00:10]} e6 {[%emt 0:00:20]} 3. g3 {[%emt 0:00:20]} b5 {[%emt 0:00:28]} 4. Bg2 {[%emt 0:00:05]} Bb7 {[%emt 0:00:02]} 5. O-O {[%emt 0:00:49]} Be7 {[%emt 0:00:43]} 6. c4 {[%emt 0:00:47]} bxc4 {[%emt 0:00:22]} 7. Qa4 {[%emt 0:00:04]} O-O {[%emt 0:00:25]} 8. Qxc4 {[%emt 0:00:02] The position is equal.} d5 {[%emt 0:01:15]} 9. Qb3 {[%emt 0:00:45]} Ba6 {[%emt 0:00:27]} 10. Nc3 {[%emt 0:00:12]} Nbd7 {[%emt 0:00:59]} 11. Qa4 {[%emt 0:01:52]} Bb7 {[%emt 0:00:04]} 12. b4 {[%emt 0:01:53]} Nb6 {[%emt 0:03:07]} 13. Qb3 {[%emt 0:00:02]} a5 $36 {[%emt 0:00:03][%mdl 2048] Black fights for an advantage.} 14. bxa5 {[%emt 0:00:19]} Rxa5 {[%emt 0:00:07]} 15. Ne5 {[%emt 0:00:09]} Nfd7 {[%emt 0:00:35]} 16. Nd3 {[%emt 0:00:47]} Ba6 {[%emt 0:01:19]} 17. Qc2 {[%emt 0:00:44] [#]} (17. a4 $15) 17... c5 {[%emt 0:00:35]} ({Black should play} 17... Bf6 $1 18. Rd1 Bxd4) 18. dxc5 $17 {[%emt 0:00:38]} Nxc5 {[%emt 0:00:01]} 19. Nb4 {[%emt 0:00:42]} (19. a4 $142) 19... Bb7 {[%emt 0:00:18]} 20. Rb1 {[%emt 0:00:19]} Qc7 {[%emt 0:01:23]} (20... Qa8 $142 21. Nd3 Nc4 22. Nxc5 Rxc5 (22... Bxc5 23. e4 $17)) 21. Rd1 {[%emt 0:01:42]} Rc8 {[%emt 0:00:23] And now ...Ncd7 would win.} 22. a3 {[%emt 0:01:31]} (22. Bd2 $17) 22... Ncd7 $19 {[%emt 0:00:33]} 23. Rb3 {[%emt 0:01:27] [#]} (23. Nba2 $142) 23... Bf6 $1 {[%emt 0:00:09]} 24. Bd2 {[%emt 0:00:36]} (24. Bf4 {was worth a try.} Qd8 25. Be3) 24... Rc5 {[%emt 0:00:53][%cal Rf6c3]} 25. Nd3 {[%emt 0:00:25]} Rc4 {[%emt 0:01:04]} ({Don't take} 25... Rxc3 26. Bxc3 d4 (26... Bxc3 27. Rc1 $17) 27. Bxb7 Qxb7 28. a4 $19) (25... Bxc3 26. Nxc5 Bxd2 27. Qxd2 Nxc5 (27... Qxc5 $2 28. Qb4 $19) 28. Rbb1 $19) 26. Rc1 {[%emt 0:00:37]} (26. Nb2 $142 Rc6 (26... Rxc3 $2 27. Bxc3 Bxc3 28. Rc1 $19) (26... Bxc3 $2 27. Nxc4 Bxd2 28. Qxd2 $19) 27. Rc1) 26... d4 {[%emt 0:00:41]} 27. Nb5 {[%emt 0:00:02]} Rxc2 {[%emt 0:00:07]} 28. Nxc7 {[%emt 0:00:01]} Rxc1+ {[%emt 0:00:21]} ({Inferior is} 28... Rxd2 29. Bxb7 Rd8 30. Bc6 $14) 29. Bxc1 {[%emt 0:00:26]} Bxg2 {[%emt 0:00:31]} 30. Kxg2 {[%emt 0:00:40]} Rxc7 {[%emt 0:00:02]} 31. Bf4 {[%emt 0:00:02]} Rc3 {[%emt 0:00:14] Black is clearly winning.} 32. Rb5 {[%emt 0:00:10]} Rxa3 {[%emt 0:00:28]} 33. Nc5 {[%emt 0:00:27]} h6 {[%emt 0:00:26]} 34. Bd6 {[%emt 0:00:17]} Ra2 {[%emt 0:00:12]} 35. Kf3 {[%emt 0:00:59]} Nxc5 {[%emt 0:00:29]} 36. Rxb6 {[%emt 0:00:10]} Na4 {[%emt 0:00:14]} 37. Rb8+ {[%emt 0:00:07]} Kh7 {[%emt 0:00:01]} 38. Rb7 {[%emt 0:00:30]} Kg6 {[%emt 0:00:02] ...Nc3 is the strong threat.} 39. h4 {[%emt 0:00:02]} h5 {[%emt 0:00:01] Threatens to win with ...Nc3.} 40. Rb1 {[%emt 0:00:31] [#]} Rxe2 $3 {[%emt 0:00:22]} 41. Bb4 {[%emt 0:00:09]} (41. Rg1 Rc2) 41... Rb2 {[%emt 0:00:10] Weighted Error Value: White=0.45/Black=0.11 (very precise) .  Mistake:       	White=6     	Black=2      Inaccurate:     	White=2     	Black=1      OK:         	White=10    	Black=17     Best:        	White=1     	Black=1} 0-1

[Event "American Cup Women Champions 2024"]
[Site "Saint Louis"]
[Date "2024.03.15"]
[Round "2.3"]
[White "Lee, Alice"]
[Black "Tokhirjonova, Gulrukhbegim"]
[Result "1-0"]
[ECO "E12"]
[WhiteElo "2356"]
[BlackElo "2365"]
[Annotator "TA"]
[PlyCount "65"]
[EventDate "2024.03.11"]
[EventType "k.o."]
[EventCountry "USA"]
[SourceTitle "playchess.com"]
[Source "ChessBase"]
[SourceQuality "1"]
[TimeControl "900+10"]

{[%evp 15,65,30,81,81,100,81,126,127,169,159,247,233,228,252,263,253,325,318,395,381,384,370,399,402,480,397,413,411,401,390,857,841,828,822,908,883,848,849,788,580,595,576,1835,1031,29981,29963,29963,29964,5597,1750,29992,29993]} 1. d4 {[%emt 0:00:00]} Nf6 {[%emt 0:00:00]} 2. c4 {[%emt 0:00:00]} e6 {[%emt 0:00:00]} 3. Nf3 {[%emt 0:00:00]} b6 {[%emt 0:00:00]} 4. a3 {[%emt 0:00:00]} Bb7 {[%emt 0:00:00]} 5. Nc3 {[%emt 0:00:00]} Be7 {[%emt 0:00:00]} 6. d5 {[%emt 0:00:00]} O-O {[%emt 0:00:00]} 7. e4 {[%emt 0:00:00]} d6 {[%emt 0:00:00]} 8. Bd3 {[%emt 0:00:00]} a5 {[%emt 0:00:00]} (8... exd5 $11 {keeps the balance.} 9. cxd5 (9. exd5 c6 $14) 9... a6) 9. Nd4 $16 {[%emt 0:00:00]} Qd7 {[%emt 0:00:00]} 10. Bc2 {[%emt 0:00:00] White is more active.} c5 {[%emt 0:00:00]} 11. Ndb5 {[%emt 0:00:00] White is better.} exd5 {[%emt 0:00:00]} 12. exd5 {[%emt 0:00:00]} Ng4 {[%emt 0:00:00]} (12... Na6 $16 {was necessary.} 13. O-O Nc7 14. Nxc7 Qxc7) 13. Bf4 {[%emt 0:00:00]} Ne5 {[%emt 0:00:00][%cal Bg4e5,Be5g6,Bg6e7][%mdl 32]} 14. O-O {[%emt 0:00:00]} f5 {[%emt 0:00:00]} 15. Re1 {[%emt 0:00:00]} Ng6 {[%emt 0:00:00]} 16. Qd2 {[%emt 0:00:00]} Qd8 {[%emt 0:00:00] [#]} 17. Rxe7 $1 {[%emt 0:00:00][%mdl 512]} Nxe7 {[%emt 0:00:00]} 18. Nxd6 {[%emt 0:00:00]} Ba6 {[%emt 0:00:00]} 19. Re1 {[%emt 0:00:00]} Ra7 {[%emt 0:00:00]} 20. Ndb5 {[%emt 0:00:00]} Rd7 {[%emt 0:00:00] [#]} 21. Bc7 $1 {[%emt 0:00:00][%mdl 512]} Rxc7 {[%emt 0:00:00]} 22. Nxc7 {[%emt 0:00:00]} Qxc7 {[%emt 0:00:00]} (22... Bc8 23. Qg5 Ng6 24. Qxd8 Rxd8) 23. d6 $18 {[%emt 0:00:00]} Qd8 {[%emt 0:00:00]} 24. Rxe7 {[%emt 0:00:00]} (24. dxe7 $2 {loses.} Qxd2 25. e8=Q Rxe8 $19 (25... Qxc2 26. Qe6+ Kh8 27. Qf7 $17) (25... Bxc4 $2 26. Qe3 $19)) 24... Bxc4 {[%emt 0:00:00]} 25. Qf4 {[%emt 0:00:00][%csl LRc4,LRf5]} Bf7 {[%emt 0:00:00]} 26. Qxf5 {[%emt 0:00:00][%csl Gc2][%cal Rf5h7]} g6 {[%emt 0:00:00]} 27. Qf4 {[%emt 0:02:38] aiming for Ne4.} Nc6 {[%emt 0:00:00] [#]} 28. Qf6 {[%emt 0:04:38][%cal Oc3d5] Strongly threatening Nd5!} Nd4 {[%emt 0:01:01] [#]} (28... Nxe7 29. dxe7) 29. Ne4 $1 {[%emt 0:01:42]} Ne6 {[%emt 0:12:38] Inhibits Ng5.} (29... Nc6 30. Ng5) 30. Bb3 {[%emt 0:01:26]} c4 {[%emt 0:00:00]} 31. Bxc4 {[%emt 0:00:00]} Qc8 {[%emt 0:00:00]} 32. Qxe6 {[%emt 0:00:05]} (32. Bxe6 $2 Qc1#) (32. Nd2 $142 Nd8 33. d7) 32... Qxc4 {[%emt 0:00:56]} 33. Nf6+ {[%emt 0:00:00] Black got outplayed after the opening.   Weighted Error Value: White=0.31/Black=0.98.  Mistake:       	---       	Black=2      Inaccurate:     	White=1     	Black=4      OK:         	White=6     	Black=2      Best:        	White=1     	---} 1-0